bitfinex-derivatives/quotes_ETHF0:USTF0_20251009
["timestamp","ask_amount","ask_price","bid_price","bid_amount"]
[1760032879258,3.3578,4336.1,4335.6,0.9455]
[1760032879465,3.5958,4336.1,4335.6,0.9455]
[1760032879664,6.33945585,4336.1,4336.0,1.3457]
[1760032879861,6.57745585,4336.1,4336.0,1.3457]
[1760032880065,6.57745585,4336.1,4336.0,1.34772306]
[1760032880363,3.36965585,4336.1,4336.0,1.34772306]
[1760032881068,3.36965585,4336.1,4336.0,0.40222306]
[1760032882071,8.36965585,4336.1,4335.0,0.4184]
[1760032882269,0.15,4335.1,4334.1,0.9455]
[1760032882471,3.2078,4334.6,4334.0,0.4184]
[1760032882768,0.15,4334.1,4334.0,1.3639]
[1760032883076,3.36883736,4334.1,4334.0,1.3657635]
[1760032883467,6.57663736,4334.1,4334.0,0.4202635]
[1760032883761,6.57663736,4334.1,4333.6,0.9455]
[1760032883966,0.15,4333.7,4333.5,0.4184]
[1760032884168,0.389,4333.6,4333.5,1.3639]
[1760032884367,3.18731568,4333.6,4333.5,1.3639]
[1760032884575,3.33731568,4333.6,4333.5,0.4184]
[1760032884768,3.33731568,4333.6,4333.5,1.36647239]
[1760032885271,3.09831568,4333.6,4333.5,1.36647239]
[1760032885470,3.33731568,4333.6,4333.5,1.36647239]
[1760032886570,11.39511568,4333.6,4332.5,1.3639]
[1760032886773,3.2078,4333.0,4332.6,0.9455]
[1760032886970,0.15,4332.8,4332.6,0.9455]
[1760032887172,3.05542801,4332.9,4332.6,0.9455]
[1760032887478,3.05542801,4333.4,4333.1,0.9455]
[1760032887664,0.239,4333.3,4333.2,0.9455]
[1760032887973,3.22100803,4333.3,4333.2,0.9455]
[1760032888169,3.13200803,4333.3,4333.1,0.00275377]
[1760032888369,0.15,4333.2,4333.1,0.00275377]
[1760032888772,2.98200803,4333.2,4332.5,0.4184]
[1760032888971,0.15,4332.6,4332.5,0.4184]
[1760032889273,3.23308485,4332.6,4332.5,0.4184]
[1760032889578,8.56477236,4332.6,4331.6,0.9455]
[1760032889774,0.15,4331.8,4331.6,0.9455]
[1760032889973,0.239,4331.7,4331.6,0.94718692]
[1760032890271,3.4165404,4331.7,4331.6,0.9455]
[1760032890476,3.2665404,4331.7,4331.6,0.9455]
[1760032890868,3.0275404,4331.7,4331.6,0.9455]
[1760032891073,3.2675404,4331.7,4331.6,0.9455]
[1760032891268,3.2675404,4331.7,4331.6,0.94738453]
[1760032891468,8.2675404,4331.7,4331.0,0.4184]
[1760032891673,3.3578,4331.1,4331.0,1.3639]
[1760032891873,3.5978,4331.1,4331.0,1.3639]
[1760032892068,6.64293587,4331.1,4331.0,0.4184]
[1760032892577,6.64293587,4331.1,4331.0,0.42053249]
[1760032893280,13.51422092,4331.1,4330.5,0.4184]
[1760032893472,3.3578,4330.6,4330.0,0.4184]
[1760032893675,3.3578,4330.1,4330.0,0.4184]
[1760032894076,6.66778291,4330.1,4330.0,0.4184]
[1760032894281,6.67033778,4330.1,4330.0,0.42124324]
[1760032894574,6.42833778,4330.1,4330.0,1.36674324]
[1760032894777,6.67033778,4330.1,4330.0,1.36674324]
[1760032894976,6.42833778,4330.1,4330.0,1.36674324]
[1760032895179,6.52033778,4330.1,4330.0,1.36674324]
[1760032895376,6.27833778,4330.1,4330.0,6.78223324]
[1760032895582,3.2078,4331.1,4331.0,1.3639]
[1760032895777,3.4498,4331.1,4331.0,1.3639]
[1760032895976,6.57352428,4331.1,4331.0,1.3639]
[1760032896281,6.33152428,4331.1,4331.0,1.3639]
[1760032896474,6.5762196,4331.1,4331.0,0.4184]
[1760032896671,11.5762196,4331.1,4330.5,1.446]
[1760032896875,3.3578,4330.6,4330.5,1.446]
[1760032897177,6.59555661,4330.6,4330.5,0.4184]
[1760032897373,6.59555661,4330.6,4330.5,1.446]
[1760032898684,6.20355661,4330.6,4330.5,1.446]
[1760032899178,2.99575661,4330.6,4330.5,1.446]
[1760032899386,3.23775661,4330.6,4330.5,1.446]
[1760032899682,3.02120331,4331.0,4330.6,1.0276]
[1760032899882,0.242,4330.9,4330.6,1.0276]
[1760032900281,3.00218356,4330.8,4330.6,1.0276]
[1760032900481,0.242,4330.7,4330.6,1.0276]
[1760032900884,3.24418356,4330.7,4330.6,1.0276]
[1760032901980,8.24418356,4330.7,4330.0,0.42124324]
[1760032902179,3.3578,4330.1,4330.0,0.42124324]
[1760032902376,3.5998,4330.1,4330.0,0.42124324]
[1760032902582,6.64346903,4330.1,4330.0,0.42124324]
[1760032902984,6.40146903,4330.1,4330.0,0.42124324]
[1760032903288,6.64346903,4330.1,4330.0,0.42124324]
[1760032903883,6.64346903,4330.1,4329.5,0.4184]
[1760032904090,3.3578,4329.6,4329.5,0.4184]
[1760032904385,6.57387913,4329.6,4329.5,0.4184]
[1760032904683,6.57387913,4329.6,4329.5,1.446]
[1760032904984,6.57387913,4329.6,4329.5,0.42013222]
[1760032905583,6.57387913,4329.6,4329.5,1.35443222]
[1760032905783,6.33187913,4329.6,4329.5,1.35443222]
[1760032905981,6.57387913,4329.6,4329.5,1.35443222]
[1760032906181,6.18187913,4329.6,4329.5,1.35443222]
[1760032906388,3.2078,4329.6,4329.5,6.35443222]
[1760032906588,0.242,4329.6,4329.5,6.35443222]
[1760032906885,3.2078,4330.4,4330.1,0.9343]
[1760032907082,0.242,4330.3,4330.1,0.9343]
[1760032907391,0.242,4330.3,4330.0,0.4125]
[1760032907392,3.2835514,4330.3,4330.0,0.4125]
[1760032907590,3.2835514,4330.3,4330.1,0.9343]
[1760032907791,3.2835514,4330.3,4330.0,0.4125]
[1760032908086,0.15,4330.1,4330.0,0.4125]
[1760032908286,0.391,4330.1,4330.0,0.4125]
[1760032908484,3.32661831,4330.1,4330.0,1.3468]
[1760032908685,3.17661831,4330.1,4330.0,1.3468]
[1760032908991,3.32661831,4330.1,4330.0,1.3468]
[1760032909484,3.08561831,4330.1,4330.0,1.3468]
[1760032909785,3.32661831,4330.1,4330.0,1.3468]
[1760032910187,3.32661831,4330.1,4330.0,0.4125]
[1760032910990,3.32661831,4330.1,4329.5,1.35443222]
[1760032911195,3.17661831,4330.1,4330.0,1.3468]
[1760032911493,6.38441831,4330.1,4330.0,1.3468]
[1760032911682,6.53441831,4330.1,4330.0,1.3468]
[1760032913299,6.53441831,4330.1,4329.5,0.42013222]
[1760032913596,3.2078,4329.6,4329.5,1.35443222]
[1760032913785,3.4488,4329.6,4329.5,1.35443222]
[1760032913986,2.99329379,4329.6,4329.5,1.35443222]
[1760032914387,2.98520915,4329.7,4329.6,0.9343]
[1760032914584,3.2078,4330.2,4329.6,0.9343]
[1760032914899,2.98520915,4330.1,4330.0,0.4125]
[1760032915097,0.241,4330.2,4330.1,0.41548]
[1760032915394,0.241,4330.2,4330.1,0.9343]
[1760032915898,3.30802796,4330.2,4330.1,0.9343]
[1760032916594,3.30802796,4330.2,4330.0,0.4125]
[1760032916896,0.15,4330.1,4330.0,0.4125]
[1760032917091,3.06702796,4330.2,4330.0,0.4125]
[1760032917293,3.2078,4330.3,4330.1,0.9343]
[1760032917498,3.2017094,4330.2,4330.1,0.9343]
[1760032919492,3.2078,4330.8,4330.6,0.9343]
[1760032919697,0.391,4330.7,4330.6,0.9343]
[1760032919894,3.43777796,4330.7,4330.6,0.9343]
[1760032920094,3.28777796,4330.7,4330.6,0.9343]
[1760032920395,1.23392217,4330.9,4330.6,5.9343]
[1760032920700,1.34334397,4331.0,4330.9,1.34971]
[1760032920896,3.2078,4332.4,4332.3,0.9343]
[1760032921294,3.2078,4332.4,4332.3,5.9343]
[1760032921894,3.20974832,4332.4,4332.3,5.9343]
[1760032922195,0.24294832,4332.4,4332.3,5.9343]
[1760032922397,2.94688254,4332.4,4332.3,5.9343]
[1760032922602,0.00194832,4332.4,4332.3,5.9343]
[1760032922903,0.00194832,4332.4,4332.3,6.34957]
[1760032923099,0.00194832,4332.4,4332.3,0.9343]
[1760032923899,0.24294832,4332.4,4332.3,0.9343]
[1760032924101,0.00194832,4332.4,4332.3,5.9343]
[1760032924396,0.23594832,4332.4,4332.3,5.9343]
[1760032924597,0.23594832,4332.4,4332.3,0.9343]
[1760032925099,0.00194832,4332.4,4332.3,0.9343]
[1760032925402,0.24294832,4332.4,4332.3,0.9343]
[1760032926602,0.00194832,4332.4,4332.3,0.9343]
[1760032926796,0.24294832,4332.4,4332.3,0.9343]
[1760032927199,0.00194832,4332.4,4332.3,0.9343]
[1760032929699,3.02127054,4332.4,4332.3,0.9343]
[1760032930803,3.02127054,4332.4,4331.1,0.9512]
[1760032930804,8.02127054,4332.4,4331.1,0.9512]
[1760032931004,3.2078,4331.7,4331.6,0.9512]
[1760032931203,3.4478,4331.7,4331.6,0.9512]
[1760032931708,0.24,4331.7,4331.6,0.9512]
[1760032933298,3.02152534,4331.7,4331.6,5.9512]
[1760032933499,0.24,4332.0,4331.6,5.9512]
[1760032933699,0.24,4332.0,4331.6,0.9512]
[1760032934100,3.02152534,4332.3,4332.0,0.4057]
[1760032934304,0.24,4332.2,4332.1,0.9512]
[1760032936904,3.26355088,4332.2,4332.1,0.9512]
[1760032937507,8.26355088,4332.2,4332.1,0.9512]
[1760032937705,8.26355088,4332.2,4331.5,0.4057]
[1760032938009,0.15,4331.6,4331.5,0.4057]
[1760032938312,3.41888066,4331.6,4331.5,0.4057]
[1760032939310,6.62668066,4331.6,4331.5,0.4057]
[1760032939708,6.62668066,4331.6,4331.5,1.3569]
[1760032940908,6.62668066,4331.6,4331.5,0.4057]
[1760032941310,6.62668066,4331.6,4331.0,1.3637]
[1760032941505,0.15,4331.1,4331.0,1.3637]
[1760032941710,0.389,4331.1,4331.0,1.3637]
[1760032941910,3.45147507,4331.1,4331.0,1.3637]
[1760032942109,6.65927507,4331.1,4330.5,1.3637]
[1760032942413,6.50927507,4331.1,4330.6,0.9512]
[1760032942612,0.15,4330.6,4330.5,0.4125]
[1760032942817,3.5968,4330.6,4330.5,1.3637]
[1760032943109,6.57851679,4330.6,4330.5,0.4125]
[1760032943308,6.57851679,4330.6,4330.0,0.4057]
[1760032943309,6.57851679,4330.6,4330.0,1.3569]
[1760032943513,0.15,4330.1,4330.0,1.3569]
[1760032943814,3.5968,4330.1,4329.5,0.00173222]
[1760032944012,3.3578,4329.6,4329.5,0.00173222]
[1760032944214,3.5968,4329.6,4329.5,0.00173222]
[1760032944414,6.58579902,4329.6,4329.5,0.00173222]
[1760032944613,11.77178903,4329.6,4328.6,0.9512]
[1760032944812,3.2078,4328.9,4328.6,0.9512]
[1760032945107,0.15,4328.7,4328.5,0.4057]
[1760032945313,0.15,4328.6,4328.0,1.3569]
[1760032945515,0.15,4328.3,4328.1,0.9512]
[1760032945720,0.15,4328.3,4328.1,0.95394028]
[1760032945721,0.239,4328.2,4328.1,0.95394028]
[1760032945905,3.39620398,4328.2,4328.1,0.95394028]
[1760032946109,3.24620398,4328.2,4328.1,0.95394028]
[1760032948715,3.24620398,4328.2,4328.0,0.4057]
[1760032949012,0.15,4328.1,4328.0,1.3569]
[1760032949217,0.15,4328.1,4328.0,0.4057]
[1760032949417,3.17108946,4328.1,4328.0,0.4057]
[1760032949920,3.17108946,4328.1,4328.0,0.00192997]
[1760032950318,2.50236744,4328.1,4328.0,6.35882997]
[1760032950621,0.00295752,4328.3,4328.2,0.9512]
[1760032950819,0.00295752,4328.3,4328.1,0.41567]
[1760032950820,3.2078,4329.5,4329.1,0.9512]
[1760032951317,3.2078,4329.5,4329.0,0.4057]
[1760032951514,3.2078,4329.5,4329.2,0.41557]
[1760032951709,0.239,4329.4,4329.2,0.41557]
[1760032951909,0.239,4329.4,4329.3,0.9512]
[1760032952409,3.21058144,4329.5,4329.3,5.9512]
[1760032952614,0.24178144,4329.5,4329.4,0.9512]
[1760032953016,0.00278144,4329.5,4329.4,0.9512]
[1760032954117,1.88013401,4330.7,4330.5,0.4057]
[1760032954321,2.11913401,4330.7,4330.6,0.9512]
[1760032954619,1.88013401,4330.7,4330.6,0.9512]
[1760032954822,3.2078,4331.1,4331.0,1.3569]
[1760032955018,3.4468,4331.1,4331.0,1.3569]
[1760032955221,3.2078,4331.8,4331.6,0.9512]
[1760032955521,1.16834241,4331.7,4331.6,0.95289747]
[1760032958114,4.20132511,4331.7,4331.6,0.95289747]
[1760032958319,4.44032511,4331.7,4331.6,0.95289747]
[1760032960818,1.16834241,4331.7,4331.6,0.95289747]
[1760032961021,0.78740486,4331.7,4331.6,9.16069747]
[1760032961222,0.00184241,4331.7,4331.6,9.16069747]
[1760032961612,0.00184241,4331.7,4331.6,49.96069747]
[1760032962225,5.0153,4332.8,4332.6,0.9636]
[1760032962624,5.0153,4332.8,4332.6,1.37884]
[1760032962828,5.0153,4332.8,4332.7,0.9636]
[1760032963021,1.8075,4332.8,4332.7,0.9636]
[1760032963326,1.81022394,4332.8,4332.7,5.9636]
[1760032963518,3.2078,4333.9,4333.6,0.9636]
[1760032963727,3.2078,4333.9,4333.5,0.3892]
[1760032964126,3.2078,4333.9,4333.6,0.9636]
[1760032964324,3.2078,4333.9,4333.7,0.9636]
[1760032964629,3.21076912,4333.9,4333.6,0.41514]
[1760032964929,3.21076912,4333.9,4333.8,0.9676]
[1760032965524,3.21076912,4333.9,4333.8,5.9676]
[1760032965726,0.00296912,4333.9,4333.8,9.1754]
[1760032967126,1.796,4334.3,4334.2,1.38269]
[1760032967431,1.796,4334.3,4334.2,1.62069]
[1760032967628,1.796,4334.3,4334.2,42.42069]
[1760032968128,0.13718391,4334.3,4334.2,42.42069]
[1760032969028,0.13718391,4334.3,4334.2,42.0056]
[1760032970430,1.5486,4334.7,4334.5,0.374]
[1760032970626,1.5486,4334.7,4334.6,4.82845]
[1760032970627,0.5211,4334.7,4334.6,4.82845]
[1760032970929,1.0061,4336.5,4335.9,0.9676]
[1760032971126,1.1561,4336.1,4335.9,0.9676]
[1760032971323,1.1561,4336.1,4336.0,41.7676]
[1760032971526,1.15850524,4336.1,4336.0,40.80227998]
[1760032971729,1.15850524,4336.1,4336.0,41.76987998]
[1760032971931,0.15240524,4336.1,4336.0,41.76987998]
[1760032972432,0.00240524,4336.1,4336.0,42.14387998]
[1760032973937,0.00240524,4336.1,4336.0,42.38187998]
[1760032976734,1.15850524,4336.1,4336.0,40.80227998]
[1760032977030,4.36630524,4336.1,4336.0,40.80227998]
[1760032977232,12.32752605,4336.1,4336.0,0.00227998]
[1760032977641,0.3724,4336.0,4335.0,40.8]
[1760032977835,1.0061,4335.4,4334.7,3.2078]
[1760032978035,0.15,4334.8,4334.7,3.2078]
[1760032978241,0.15,4334.8,4334.7,44.9754]
[1760032978436,0.15,4334.8,4334.7,44.0078]
[1760032978437,1.1561,4334.8,4334.7,44.0078]
[1760032978638,1.1561,4334.8,4334.7,40.80185809]
[1760032978839,1.1561,4334.8,4334.7,0.00185809]
[1760032979039,9.08617943,4334.8,4334.7,0.00185809]
[1760032980043,1.0061,4334.7,4333.6,3.2078]
[1760032980243,1.1561,4333.7,4333.6,3.2078]
[1760032980448,1.0061,4333.6,4333.0,3.2078]
[1760032980744,0.15,4333.3,4333.2,0.9676]
[1760032981054,1.3785,4333.0,4332.4,3.2078]
[1760032981238,0.237,4332.9,4332.4,3.2078]
[1760032981445,1.1561,4332.5,4332.4,3.21022171]
[1760032981938,1.1561,4332.5,4332.4,0.00242171]
[1760032984154,0.15,4332.5,4332.4,0.97002171]
[1760032984644,1.1561,4332.5,4332.4,0.00242171]
[1760032985351,1.5285,4332.5,4332.4,0.00242171]
[1760032987048,9.47920722,4332.5,4332.4,0.00242171]
[1760032987244,12.68700722,4332.5,4332.4,0.00242171]
[1760032987649,0.9811,4332.4,4331.4,40.8]
[1760032987946,0.9811,4331.4,4330.9,0.237]
[1760032988152,0.15,4331.2,4330.9,0.237]
[1760032988351,0.9811,4331.1,4331.0,40.8]
[1760032988546,0.9811,4331.1,4331.0,41.80464355]
[1760032988748,0.237,4331.4,4331.0,41.80464355]
[1760032989053,0.237,4331.9,4331.5,1.002]
[1760032989257,0.15,4331.7,4331.6,1.002]
[1760032989547,0.9811,4331.6,4331.5,3.2078]
[1760032989752,1.1311,4331.6,4331.5,3.2078]
[1760032990951,1.3543,4331.5,4331.2,40.8]
[1760032991151,1.1311,4331.3,4331.2,40.8]
[1760032991545,1.1311,4331.3,4331.2,41.802]
[1760032991546,0.15,4331.3,4331.2,41.802]
[1760032992546,2.3892,4331.6,4331.0,0.00264355]
[1760032992743,1.4081,4331.6,4331.5,4.5808]
[1760032993048,1.4081,4331.6,4331.5,45.6178]
[1760032993251,0.85000023,4331.6,4331.5,50.6178]
[1760032993448,0.0021339,4333.0,4332.9,1.41721]
[1760032993649,0.0021339,4333.0,4332.9,4.62501]
[1760032994253,0.0021339,4333.0,4332.9,45.42501]
[1760032994449,0.0021339,4333.0,4332.9,45.0098]
[1760032994751,0.0021339,4333.0,4332.9,44.0078]
[1760032994752,0.9832339,4333.0,4332.9,44.0078]
[1760032994955,1.5064339,4333.0,4332.9,44.0078]
[1760032995254,0.3732,4332.5,4332.3,3.2078]
[1760032995453,1.1311,4332.4,4332.3,3.2078]
[1760032995653,1.1311,4332.4,4332.3,44.0078]
[1760032995848,0.9811,4332.4,4332.3,44.0078]
[1760032996449,0.9811,4332.4,4332.3,3.2078]
[1760032997353,2.94649189,4332.4,4331.7,3.2078]
[1760032997651,0.15,4331.8,4331.1,3.62318]
[1760032997850,0.9811,4331.4,4331.1,3.2078]
[1760032998153,0.9811,4331.3,4331.1,3.2078]
[1760032998356,0.15,4331.2,4331.1,4.2098]
[1760032998955,0.3732,4331.5,4331.1,3.2078]
[1760032999252,1.1311,4331.2,4331.1,3.2078]
[1760032999456,0.9811,4331.1,4331.0,0.00264355]
[1760032999646,1.1311,4331.1,4331.0,0.00264355]
[1760033000353,0.9811,4331.5,4331.4,0.41536]
[1760033000658,0.9811,4331.6,4331.5,0.41534]
[1760033000859,0.9811,4331.6,4331.4,1.002]
[1760033001054,0.9811,4331.4,4331.0,0.00264355]
[1760033001252,0.3732,4331.0,4330.5,3.2078]
[1760033001454,1.1311,4330.6,4330.5,3.2078]
[1760033001854,0.3732,4330.5,4330.0,3.2078]
[1760033002253,3.25098305,4330.4,4330.0,3.21046564]
[1760033002552,0.9811,4330.1,4330.0,3.21046564]
[1760033002757,1.1311,4330.1,4330.0,3.21046564]
[1760033004958,0.1388,4330.3,4330.2,1.002]
[1760033006163,0.1388,4330.3,4330.2,46.802]
[1760033009162,0.1388,4330.3,4330.2,41.802]
[1760033009866,1.2699,4330.3,4330.2,40.8]
[1760033010666,0.2888,4330.3,4330.2,41.802]
[1760033010863,1.2699,4330.3,4330.2,40.8]
[1760033012060,0.1388,4330.3,4330.2,41.802]
[1760033012257,0.1388,4330.3,4330.2,46.802]
[1760033014858,0.1388,4330.3,4330.2,47.61380319]
[1760033015257,0.1388,4330.3,4330.2,46.802]
[1760033015462,0.1388,4330.3,4330.2,48.02890264]
[1760033015869,0.1388,4330.3,4330.2,46.802]
[1760033017171,1.0092,4332.4,4331.9,0.4153]
[1760033017362,3.2078,4332.6,4331.9,0.4153]
[1760033017566,4.06530266,4332.4,4331.8,0.9554]
[1760033017762,4.06530266,4332.4,4332.2,1.37068]
[1760033017763,1.0092,4332.4,4332.2,1.37068]
[1760033018072,0.15,4332.3,4332.2,1.37068]
[1760033018267,0.15,4332.3,4332.2,4.57848]
[1760033018572,1.1592,4332.3,4332.2,4.57848]
[1760033018765,1.1592,4332.3,4332.2,3.62308]
[1760033019275,0.15,4332.3,4332.2,4.57848]
[1760033020662,1.1592,4332.3,4332.2,3.2078]
[1760033024178,0.15,4332.3,4331.9,40.8]
[1760033024366,1.0092,4332.4,4332.0,0.6523]
[1760033024674,0.15,4332.1,4332.0,1.6077]
[1760033024878,1.1592,4332.1,4332.0,1.6077]
[1760033025176,1.1592,4332.1,4332.0,0.6523]
[1760033025478,1.1592,4332.1,4332.0,0.237]
[1760033026173,0.15,4332.1,4332.0,1.2268]
[1760033027177,1.1167,4332.1,4332.0,1.2268]
[1760033027471,1.1167,4332.1,4331.9,41.21531]
[1760033027672,1.4847,4332.0,4331.9,40.8]
[1760033027871,0.518,4332.0,4331.7,3.4448]
[1760033028068,1.1167,4331.8,4331.7,3.2078]
[1760033028679,0.368,4331.5,4331.1,3.2078]
[1760033028975,1.1167,4331.2,4331.1,3.2078]
[1760033029375,0.9667,4331.2,4331.1,3.2078]
[1760033029570,0.368,4331.0,4330.6,3.2078]
[1760033030170,1.1167,4330.7,4330.6,3.2078]
[1760033030368,1.1167,4330.7,4330.2,0.237]
[1760033030369,0.368,4330.5,4330.2,0.237]
[1760033030574,0.9667,4330.4,4330.2,0.237]
[1760033030774,0.9667,4330.4,4330.3,40.8]
[1760033031074,0.9667,4330.4,4330.3,41.21546]
[1760033033274,0.9667,4330.4,4330.3,40.8]
[1760033035074,3.4448,4331.1,4330.3,40.8]
[1760033035075,0.9667,4331.4,4331.0,0.41539]
[1760033035275,3.2078,4331.6,4331.5,0.41535]
[1760033035483,4.3245,4331.6,4331.5,0.41535]
[1760033035873,4.3245,4331.6,4331.5,1.40515]
[1760033036173,3.3578,4331.6,4331.5,1.40515]
[1760033036572,4.3245,4331.6,4331.5,0.41535]
[1760033036773,4.3245,4331.6,4331.4,1.64215]
[1760033037483,1.1167,4331.6,4331.5,40.8]
[1760033037678,0.9667,4331.6,4331.5,40.8]
[1760033037981,1.1167,4331.6,4331.5,40.8]
[1760033039080,1.1167,4331.6,4331.5,41.7898]
[1760033039269,0.15,4331.6,4331.5,41.7898]
[1760033039473,0.9667,4332.0,4331.9,0.41531]
[1760033039674,0.9667,4332.0,4331.9,0.65231]
[1760033040081,0.2654,4332.2,4331.9,0.65231]
[1760033040082,0.2654,4332.2,4332.1,0.41529]
[1760033040280,0.2654,4332.2,4331.9,0.6523]
[1760033040474,0.518,4332.0,4331.6,0.41534]
[1760033040675,0.9667,4331.9,4331.5,40.8]
[1760033040870,1.3347,4331.5,4331.4,3.2078]
[1760033041075,1.4847,4331.5,4331.4,3.2078]
[1760033041281,1.4847,4331.5,4331.4,44.0078]
[1760033041579,1.3347,4331.0,4330.9,0.81797063]
[1760033041770,0.9667,4330.9,4330.5,0.81797063]
[1760033042079,1.1167,4330.6,4330.5,0.81797063]
[1760033042580,0.9667,4330.6,4330.5,41.61797063]
[1760033042781,0.368,4331.0,4330.5,42.60777063]
[1760033043074,0.9667,4330.9,4330.8,1.40521]
[1760033043277,0.605,4331.5,4331.0,0.41539]
[1760033043482,0.9667,4331.1,4331.0,0.41539]
[1760033043779,1.1167,4331.1,4331.0,0.41539]
[1760033044180,1.1167,4331.1,4330.8,3.86021]
[1760033044383,1.1167,4330.9,4330.8,3.2078]
[1760033044886,0.9667,4330.9,4330.8,3.2078]
[1760033046974,0.9078,4330.8,4330.5,41.62096319]
[1760033047180,2.97622378,4330.9,4330.5,41.62096319]
[1760033047181,1.0578,4330.6,4330.5,40.8]
[1760033048183,0.9078,4330.1,4330.0,40.80266564]
[1760033049079,0.3672,4330.5,4330.0,42.55152883]
[1760033049281,1.275,4330.5,4330.1,0.237]
[1760033049582,0.9078,4330.2,4330.1,0.237]
[1760033050285,0.9078,4330.4,4330.0,40.80266564]
[1760033050484,1.0578,4330.1,4330.0,40.80266564]
[1760033050983,1.0578,4330.1,4330.0,0.00266564]
[1760033053175,0.3672,4330.5,4330.3,0.41546]
[1760033053385,0.9078,4330.4,4330.0,0.23966564]
[1760033053576,0.9078,4330.2,4330.0,0.65515564]
[1760033053774,1.0578,4330.3,4330.2,0.41547]
[1760033053986,0.9078,4330.3,4330.2,0.41547]
[1760033054181,0.3672,4330.5,4330.0,0.65514564]
[1760033054182,0.9078,4330.4,4330.0,0.65514564]
[1760033054487,0.15,4330.3,4330.0,0.23966564]
[1760033054781,0.15,4330.3,4330.0,0.00266564]
[1760033054782,1.0578,4330.1,4330.0,0.00266564]
[1760033054986,1.2948,4330.1,4330.0,0.00266564]
[1760033055187,4.34365226,4330.1,4330.0,0.00266564]
[1760033056781,13.03723029,4330.1,4330.0,0.00266564]
[1760033058191,14.24803029,4330.1,4330.0,0.00266564]
[1760033058780,10.80323029,4330.1,4330.0,0.00266564]
[1760033058984,2.75437803,4330.1,4330.0,0.00266564]
[1760033059286,0.3672,4330.5,4330.0,0.93056564]
[1760033059484,0.9078,4330.1,4330.0,0.00266564]
[1760033059988,1.0578,4330.1,4330.0,0.00266564]
[1760033060193,4.36190375,4330.1,4330.0,0.00266564]
[1760033060991,13.0590224,4330.1,4330.0,0.00266564]
[1760033062487,8.0590224,4330.1,4330.0,0.00266564]
[1760033063087,7.56970375,4330.1,4330.0,0.00266564]
[1760033063393,8.78050375,4330.1,4330.0,0.00266564]
[1760033063589,9.26958829,4330.1,4330.0,0.00266564]
[1760033063981,6.06178829,4330.1,4330.0,0.00266564]
[1760033064183,5.18570375,4330.1,4330.0,0.65136564]
[1760033064386,5.18570375,4330.1,4330.0,0.00266564]
[1760033064587,5.33570375,4330.1,4330.0,0.00266564]
[1760033065298,8.54350375,4330.1,4330.0,0.00266564]
[1760033065888,5.57270375,4330.1,4330.0,0.00266564]
[1760033066089,5.18570375,4330.1,4330.0,0.00266564]
[1760033066293,5.57270375,4330.1,4330.0,0.00266564]
[1760033066996,2.1186,4330.1,4330.0,1.71705564]
[1760033067197,0.2673,4330.2,4330.0,2.64495564]
[1760033067489,0.2673,4330.2,4330.1,0.9279]
[1760033067887,1.1751,4330.2,4330.1,41.7279]
[1760033068300,1.1751,4330.2,4330.1,40.8]
[1760033070195,1.1751,4330.2,4330.1,41.7279]
[1760033070395,0.2673,4330.2,4330.1,41.7279]
[1760033070599,1.1751,4330.2,4330.1,40.8]
[1760033071993,2.1186,4330.1,4330.0,3.21046564]
[1760033072187,2.2686,4330.1,4330.0,3.21046564]
[1760033072392,2.1186,4330.1,4330.0,3.21046564]
[1760033072798,2.1186,4330.1,4330.0,3.85916564]
[1760033072994,2.1186,4330.1,4330.0,3.21046564]
[1760033074090,2.1186,4330.1,4330.0,3.85916564]
[1760033074292,0.2673,4330.2,4330.1,2.64228]
[1760033074688,1.1751,4330.2,4330.1,2.64228]
[1760033075600,1.7814,4330.2,4330.1,2.64228]
[1760033076195,1.7814,4330.2,4330.1,1.71438]
[1760033076596,1.7814,4330.2,4330.1,2.63378]
[1760033077192,2.4359,4330.2,4330.1,1.06418]
[1760033078305,2.4359,4330.2,4330.1,1.68338]
[1760033078603,1.7814,4330.2,4330.1,2.60278]
[1760033078900,1.7814,4330.2,4330.1,1.68338]
[1760033079299,2.4359,4330.2,4330.1,1.68338]
[1760033079703,2.4359,4330.2,4330.1,1.2679]
[1760033080003,2.1909,4330.1,4330.0,3.44746564]
[1760033080205,2.1909,4330.1,4330.0,3.21046564]
[1760033080403,2.1909,4330.1,4330.0,3.44746564]
[1760033080906,2.1909,4330.1,4330.0,4.06706564]
[1760033082205,2.1909,4330.1,4330.0,3.86295564]
[1760033082604,2.1909,4330.1,4330.0,3.21046564]
[1760033082907,2.3409,4330.1,4330.0,3.44746564]
[1760033084305,2.3409,4330.1,4330.0,4.48255564]
[1760033084908,1.8979,4330.5,4330.4,1.2624]
[1760033085108,2.09653061,4330.5,4330.0,3.21046564]
[1760033085410,2.1528,4330.1,4330.0,3.44746564]
[1760033085908,2.1528,4330.1,4330.0,4.07216564]
[1760033086099,2.1528,4330.1,4330.0,3.44746564]
[1760033086912,2.1528,4330.1,4330.0,4.07216564]
[1760033087211,2.4221,4330.1,4330.0,4.07216564]
[1760033088312,2.5721,4330.1,4330.0,3.44746564]
[1760033090912,2.5721,4330.1,4330.0,4.70986564]
[1760033091310,2.5721,4330.1,4330.0,3.44746564]
[1760033093314,1.95,4330.1,4330.0,6.03875564]
[1760033093515,2.5721,4330.1,4330.0,5.12535564]
[1760033094314,2.5721,4330.1,4330.0,4.70986564]
[1760033094911,2.5721,4330.1,4330.0,4.07216564]
[1760033095312,2.5721,4330.1,4330.0,3.44746564]
[1760033095513,2.5721,4330.1,4330.0,4.48765564]
[1760033096911,2.5721,4330.1,4329.4,2.67480127]
[1760033096912,0.2072,4328.5,4328.0,1.85229463]
[1760033097113,3.2078,4328.1,4327.5,0.3758]
[1760033097310,0.65580405,4328.0,4327.0,0.3758]
[1760033097613,1.23624071,4327.4,4327.0,0.3758]